Cogmind - Beta 15 @@@ ROGUE MODE // 2025.07.14 @ 04:54:16 Player: vilepis Result: Destroyed by Y-45 Defender with Heavy Assault Rifle Performance ------------- Evolutions (2) 1000 Regions Visited (5) 1000 Robots Destroyed (106) 530 Value Destroyed (4254) 4254 Prototype IDs (5) 100 Alien Tech Used (0) 0 Bonus (823) 823 TOTAL SCORE: 7707 Bonus ------- High Alert Combat Kills 526 Follower Combat Kills 97 Entered Garrisons 200 Cogmind --------- Core Integrity 0/550 Matter 242/300 Energy 265/265 System Corruption 0% Temperature Cool (76) Movement Walking (120) Location -8/Garrison Parts ------- > --- POWER (1) -------- Improved Ion Engine > --- PROPULSION (2) --- Carbon-fiber Leg Carbon-fiber Leg > --- UTILITY (6) ------ Power Amplifier Improved Salvage Targeting Computer Advanced Targeting Computer Light Armor Plating > --- WEAPON (2) ------- Gauss Cannon Gauss Cannon > --- INVENTORY (5) ---- Carbon-fiber Leg Peak State ------------ > --- POWER ------------ Light Angular Momentum Engine > --- PROPULSION ------- Medium Treads Medium Treads > --- UTILITY ---------- Improved Cooling System Improved Salvage Targeting Computer Advanced Targeting Computer Core Analyzer Hardened Heavy Armor Plating > --- WEAPON ----------- Gatling Laser Gatling Laser > --- INVENTORY -------- Carbon-fiber Leg Gauss Cannon Gauss Cannon [Rating: 45] Favorites ----------- Power Nuclear Core Engine Light Ion Engine Power Core Nuclear Core Propulsion Aluminum Leg Treads Medium Treads Leg Aluminum Leg Wheel Wheel Flight Unit Flight Unit Utility Advanced Targeting Computer Device Hardlight Generator Storage High-capacity Battery Processor Advanced Targeting Computer Hackware Hacking Suite Protection Weapon Shielding Weapon Beam Cannon Energy Gun Beam Rifle Energy Cannon Beam Cannon Ballistic Gun Flak Gun Ballistic Cannon Gauss Cannon Slashing Weapon Mining Claw Build | -11 -10 -10 -9 -8 -8 ------- Run | Yrd Mat Min Mat Mat Gar Slots Evolved 4 | . . . 2 2 . Power . | . . . . . . Propulsion . | . . . . . . Utility 4 | . . . 2 2 . Weapon . | . . . . . . Parts Attached 85 | 6 4 1 24 38 12 Power 12 | 1 . . 4 5 2 Engine 8 | 1 . . 3 2 2 Core 4 | . . . 1 3 . Reactor . | . . . . . . Propulsion 22 | 2 . . 7 8 5 Treads 3 | . . . 1 2 . Leg 13 | . . . 4 6 3 Wheel 2 | 2 . . . . . Hover . | . . . . . . Flight 4 | . . . 2 . 2 Utility 26 | 1 1 1 6 14 3 Device 9 | . . 1 3 3 2 Storage 2 | 1 . . 1 . . Processor 5 | . . . . 5 . Hackware 1 | . . . . 1 . Protection 9 | . 1 . 2 5 1 Artifact . | . . . . . . Weapon 25 | 2 3 . 7 11 2 Energy Gun 3 | . . . 1 . 2 Energy Cannon 3 | . 2 . 1 . . Ballistic Gun 14 | 2 . . 5 7 . Ballistic Cannon 3 | . . . . 3 . Launcher . | . . . . . . Special Weapon . | . . . . . . Impact Weapon . | . . . . . . Slashing Weapon 2 | . 1 . . 1 . Piercing Weapon . | . . . . . . Special Melee Weapon . | . . . . . . Unidentified Prototypes 1 | . . . 1 . . Parts Lost 31 | . . . 9 12 10 Power 4 | . . . 1 1 2 Propulsion 7 | . . . 3 2 2 Utility 15 | . . . 4 7 4 Weapon 5 | . . . 1 2 2 Highest Loss Streak 5 | . . . 5 4 3 To Critical Strikes . | . . . . . . Average Backups 3 | . 1 4 4 4 2 Power . | . . . . 1 . Propulsion . | . . . . . . Utility . | . . 1 . . . Weapon 2 | . 1 3 4 2 . Tool/Special . | . . . . . . Unused Backups 4 | . . . 2 2 . Power . | . . . . . . Propulsion . | . . . . . . Utility . | . . . . . . Weapon 4 | . . . 2 2 . Tool/Special . | . . . . . . Average Slot Usage (%) 88 | . 91 100 88 89 77 Engine 7 | . 14 14 5 5 6 Core 2 | . . . 4 2 2 Treads 2 | . . . . 3 3 Leg 11 | . . . 12 13 13 Wheel 5 | . 28 28 5 . . Device 11 | . . 9 19 9 11 Storage 4 | . 14 4 8 4 . Processor 13 | . . . . 21 20 Hackware 1 | . . . . 3 . Protection 7 | . 5 14 8 7 2 Energy Gun 2 | . . . 1 2 6 Energy Cannon 5 | . 4 28 8 . . Ballistic Gun 7 | . 14 . 11 11 . Ballistic Cannon 3 | . . . . 3 10 Peak Build Rating 45 | 6 7 7 19 44 45 Average Rating 24 | 4 6 7 12 32 32 On Entrance 12 | . 6 7 7 12 44 Naked Turns . | . . . . . . Heaviest Build 49 | 11 15 15 21 49 45 Greatest Support 56 | 20 20 20 23 56 56 Greatest Overweight (x) 14 | . . . 2 6 14 Average Overweight (x) . | . . . . . . Largest Inventory Capacity 8 | 8 8 8 5 5 5 Average Capacity 5 | 7 8 5 5 5 5 Most Carried 6 | . 5 6 5 5 4 Average Carried 3 | . 1 4 4 4 2 Final Capacity 8 | 8 8 5 5 5 5 Final Carried 5 | . 5 4 3 4 1 Class Distribution -------------------- 54% | Mutant 45% | Scavenger-Mutant Dominant Class ---------------- Mutant | -10/Materials Mutant | -10/Mines Mutant | -9/Materials Scavenger-Mutant | -8/Materials Scavenger-Mutant | -8/Garrison Resources | -11 -10 -10 -9 -8 -8 ----------- Run | Yrd Mat Min Mat Mat Gar Matter Collected 3212 | 191 . 122 663 1573 663 Remotely . | . . . . . . Salvage Created 3622 | . . 102 1103 1770 647 Parts 221 | . . 3 71 98 49 Haulers Intercepted 1 | . . . 1 . . Recyclers Shooed 2 | . . . 1 1 . Parts Field Recycled . | . . . . . . Retrieved Matter . | . . . . . . Parts Self-Destructed . | . . . . . . Prevented . | . . . . . . Kills | -11 -10 -10 -9 -8 -8 ------- Run | Yrd Mat Min Mat Mat Gar Combat Hostiles Destroyed 99 | . . 2 28 47 22 Melee 1 | . . . . 1 . Guns 68 | . . . 17 39 12 Cannons 30 | . . 2 11 7 10 Classes Destroyed 13 | . . 1 5 5 2 Builder 3 | . . . . 3 . Hauler 1 | . . . 1 . . Recycler 1 | . . . . 1 . Operator 1 | . . . 1 . . Watcher 1 | . . . 1 . . Swarmer 20 | . . . 8 8 4 Cutter 3 | . . . . . 3 Grunt 48 | . . 2 13 25 8 Sentry 19 | . . . 7 8 4 Demolisher 1 | . . . . . 1 Specialist 4 | . . . . 4 . Hunter 3 | . . . . 1 2 Heavy 1 | . . . . 1 . Best Kill Streak 6 | . . 2 6 6 5 Combat Bots Only 6 | . . 2 6 5 5 Max Kills in Single Turn 2 | . . 1 2 2 1 Gunslinging 1 | . . . 1 1 . Exploded . | . . . . . . Melee 1 | . . . . 1 . Uniques/NPCs Destroyed . | . . . . . . Combat | -11 -10 -10 -9 -8 -8 -------- Run | Yrd Mat Min Mat Mat Gar Hostile Shots Fired 528 | . . 6 181 247 94 Missed 126 | . . 1 45 55 25 Hits 402 | . . 5 136 192 69 Melee 10 | . . . . . 10 Projectile 392 | . . 5 136 192 59 AOE 4 | . . . . . 4 Critical Strikes 20 | . . . 3 10 7 Damage Taken 5215 | . . 64 1323 2640 1188 Core 877 | . . 15 299 479 84 Absorbed by Shields 700 | . . . 152 548 . Redirected to Shielding 152 | . . 7 38 107 . Ignored by Resistances 62 | . . . . 62 . Core Remaining (%) 73 | 100 . 94 25 . . Volleys Fired 291 | . 1 4 83 144 59 Largest 2 | . 1 2 2 2 2 Hottest 160 | . 20 120 120 80 160 Shots Fired 552 | . 1 8 165 266 112 Gun 379 | . 1 . 114 217 47 Cannon 173 | . . 8 51 49 65 Launcher . | . . . . . . Special . | . . . . . . Kinetic 415 | . 1 . 101 248 65 Thermal 137 | . . 8 64 18 47 Explosive . | . . . . . . Electromagnetic . | . . . . . . Robot Hit Streak 16 | . . 4 13 16 10 Robot Miss Streak 16 | . . . 8 16 4 Penetration Max 1 | . . . . 1 . Secondary Targets 10 | . . . 3 4 3 Max Gunslinging Chain 1 | . . . 1 1 1 Shots Hit Robots 377 | . 1 4 99 198 75 Core Hits 274 | . . 3 45 182 44 Critical Kills . | . . . . . . Critical Parts Destroyed 1 | . . . 1 . . Critical Strikes 13 | . . . 3 6 4 Burn 3 | . . . 2 1 . Destroy 1 | . . . 1 . . Blast 9 | . . . . 5 4 Melee Attacks 12 | . 9 . . 3 . Impact . | . . . . . . Slashing 12 | . 9 . . 3 . Piercing . | . . . . . . Sneak Attacks 1 | . 1 . . . . Combat Hostiles . | . . . . . . Follow-up Attacks . | . . . . . . Damage Inflicted 7223 | . 44 76 1652 3868 1583 Guns 5251 | . . . 1246 3057 948 Cannons 1892 | . . 71 406 780 635 Explosions . | . . . . . . Melee 75 | . 44 . . 31 . Ramming 5 | . . 5 . . . Kinetic 5371 | . . . 1086 3650 635 Thermal 1772 | . . 71 566 187 948 Explosive . | . . . . . . Electromagnetic . | . . . . . . Impact . | . . . . . . Slashing 75 | . 44 . . 31 . Piercing . | . . . . . . Highest Corruption 1 | . . 1 . . . Average Corruption 1 | . . 1 . . . Corruption Purged . | . . . . . . Corruption Blocked . | . . . . . . Effects 4 | . . 4 . . . Message Errors 2 | . . 2 . . . Heat Flow Errors 1 | . . 1 . . . Data Loss (minor) 1 | . . 1 . . . Overload Shots . | . . . . . . Overflow Damage 4 | . 4 . . . . Projectiles . | . . . . . . Explosions . | . . . . . . Melee 4 | . 4 . . . . Knockbacks 7 | . . . . 5 2 Impact . | . . . . . . Kinetic 7 | . . . . 5 2 Secondary . | . . . . . . Self-Inflicted Damage 2 | . . 2 . . . Shots . | . . . . . . Rammed 2 | . . 2 . . . Targets Rammed 2 | . . 2 . . . Kicked . | . . . . . . Crushed . | . . . . . . Highest Temperature 667 | . . 258 473 667 241 Average Temperature 120 | . . 105 109 153 70 Received Heat Transfer 1788 | . . 36 444 867 441 Effects 32 | . . . 5 26 1 Shutdowns 5 | . . . . 5 . Energy Bleed 6 | . . . 1 4 1 Interference 8 | . . . 3 5 . Matter Decay 1 | . . . . 1 . Short Circuit 2 | . . . 1 1 . Damage (minor) 1 | . . . . 1 . Damage (major) 7 | . . . . 7 . Damage (core) 2 | . . . . 2 . Siege Activations . | . . . . . . Martial Activations . | . . . . . . Shielding Activations . | . . . . . . Robots Disrupted . | . . . . . . Combat Hostiles . | . . . . . . Robots Corrupted . | . . . . . . Combat Hostiles . | . . . . . . Parts Fried . | . . . . . . Impact Corruptions . | . . . . . . Robots Melted . | . . . . . . Combat Hostiles . | . . . . . . Parts Melted 6 | . . 1 2 . 3 Heat Transferred 4240 | . . 148 1406 555 2131 Parts Sabotaged . | . . . . . . Parts Stolen . | . . . . . . Parts Stripped . | . . . . . . Power Chain Reactions . | . . . . . . Alert | -11 -10 -10 -9 -8 -8 ------- Run | Yrd Mat Min Mat Mat Gar Maximum Alert Level 4 | . . . 1 3 4 Low Security (%) 57 | 100 100 100 75 56 . Level 1 9 | . . . 24 10 . Level 2 15 | . . . . 27 16 Level 3 15 | . . . . 5 75 Level 4 1 | . . . . . 8 Level 5 . | . . . . . . High Security . | . . . . . . Max Security . | . . . . . . Peak Influence 1177 | . . 52 312 769 1177 Initial 497 | . . . . 126 497 Average 305 | . . 4 128 276 876 Influence Increases 3185 | . . 62 938 1405 780 Destroy 0b10 Robot/C 2080 | . . 40 660 940 440 Destroy 0b10 Robot/NC 35 | . . . 15 20 . Destroy Leader 414 | . . 10 164 220 20 Allied During Kill 45 | . . . 45 . . Successful Hack 23 | . . 12 5 6 . Disable Machine 105 | . . . 15 30 60 Anti-Garrison Action 150 | . . . . . 150 Destroy Structure 33 | . . . 4 24 5 Partial Spotted 15 | . . . . . 15 Lose Combat Pursuer 285 | . . . 30 165 90 Influence Decreases 2008 | . . 62 638 940 368 Entered New Map 442 | . . . . 174 268 Time Decay 1125 | . . 62 407 656 . Lost Part 295 | . . . 85 110 100 Lost Ally 60 | . . . 60 . . Purge Threat 86 | . . . 86 . . Squads Dispatched 16 | . 1 1 3 11 . Investigation 3 | . . 1 1 1 . Extermination . | . . . . . . Reinforcement 10 | . 1 . 2 7 . Assault . | . . . . . . Garrison 3 | . . . . 3 . Intercept . | . . . . . . Searches Triggered . | . . . . . . Construction Impeded 1 | . . . . 1 . Haulers Reinforced . | . . . . . . Active Scanning Responses . | . . . . . . Cargo Convoy Interrupts . | . . . . . . Stealth | -11 -10 -10 -9 -8 -8 --------- Run | Yrd Mat Min Mat Mat Gar Distress Signals 4 | . . . 2 2 . Communications Jammed . | . . . . . . Distress Signals . | . . . . . . Times Spotted 133 | . 1 2 38 70 22 Peak Tracking Total 9 | . 1 2 9 8 7 Tactical Retreats 9 | . . . 1 6 2 Traps | -11 -10 -10 -9 -8 -8 ------- Run | Yrd Mat Min Mat Mat Gar Traps Triggered 7 | . . . 4 2 1 Indirectly . | . . . . . . Trap Hack Attempts . | . . . . . . Triggered . | . . . . . . Disarmed . | . . . . . . Reprogrammed . | . . . . . . Reused . | . . . . . . Traps Extracted . | . . . . . . Installed . | . . . . . . Triggered . | . . . . . . Machines | -11 -10 -10 -9 -8 -8 ---------- Run | Yrd Mat Min Mat Mat Gar Machines Disabled 9 | . . . 1 2 6 Max in Single Turn 1 | . . . 1 1 1 Garrison Relay 2 | . . . . . 2 Machines Repaired . | . . . . . . Machines Dismantled . | . . . . . . Machines Sabotaged . | . . . . . . Overloaded Fab Kills . | . . . . . . Hacking | -11 -10 -10 -9 -8 -8 --------- Run | Yrd Mat Min Mat Mat Gar Machines Accessed 14 | . 2 1 5 5 1 Terminals 13 | . 2 1 5 4 1 Fabricators . | . . . . . . Repair Stations . | . . . . . . Recycling Units . | . . . . . . Scanalyzers . | . . . . . . Garrison Access 1 | . . . . 1 . Total Hacks 26 | . 3 4 6 9 4 Successful 14 | . 1 4 3 5 1 Failed 12 | . 2 . 3 4 3 Catastrophic 4 | . 1 . 2 1 . Database Lockouts . | . . . . . . Manual 2 | . . . 2 . . Terminals 25 | . 3 4 6 8 4 Fabricators . | . . . . . . Repair Stations . | . . . . . . Recycling Units . | . . . . . . Scanalyzers . | . . . . . . Garrison Access 1 | . . . . 1 . Terminal Hacks 13 | . 1 4 3 4 1 Record 4 | . . 4 . . . Robot Analysis 1 | . . . . 1 . Prototype ID Bank 2 | . . . 1 1 . Open Door 1 | . . . . . 1 Emergency Access Points 1 | . . . . 1 . Unreport Threat 1 | . . . 1 . . Dispatch Records 1 | . . . 1 . . Hauler Manifests 1 | . 1 . . . . Zone Layout 1 | . . . . 1 . Fabricator Hacks . | . . . . . . Repair Station Hacks . | . . . . . . Recycling Unit Hacks . | . . . . . . Scanalyzer . | . . . . . . Garrison Access Hacks 1 | . . . . 1 . Unlock Access 1 | . . . . 1 . Unauthorized Hacks . | . . . . . . Terminals . | . . . . . . Fabricators . | . . . . . . Repair Stations . | . . . . . . Recycling Units . | . . . . . . Scanalyzers . | . . . . . . Garrison Access . | . . . . . . Data Cores Recovered . | . . . . . . Used . | . . . . . . Hacking Detections 7 | . 1 1 2 2 1 Full Trace Events 4 | . 1 1 1 . 1 Feedback Events 1 | . . 1 . . . Corruption 1 | . . 1 . . . Feedback Blocked . | . . . . . . Robot Schematics Acquired . | . . . . . . Robots Built . | . . . . . . Authchips . | . . . . . . Time . | . . . . . . Total Robot Build Rating . | . . . . . . Part Schematics Acquired . | . . . . . . Parts Built . | . . . . . . Authchips . | . . . . . . Time . | . . . . . . Total Part Build Rating . | . . . . . . Parts Repaired . | . . . . . . Time . | . . . . . . Parts Recycled . | . . . . . . Recycled Matter . | . . . . . . Retrieved Matter . | . . . . . . Retrieved Components . | . . . . . . Parts Scanalyzed . | . . . . . . Part Schematics Acquired . | . . . . . . Parts Damaged . | . . . . . . Bothacking | -11 -10 -10 -9 -8 -8 ------------ Run | Yrd Mat Min Mat Mat Gar Used RIF Installer . | . . . . . . Robots Hacked . | . . . . . . Non-combat . | . . . . . . Combat . | . . . . . . Robot Hacks Applied . | . . . . . . Relay Couplers Released 10 | . . . . . 10 Machine Destruction 10 | . . . . . 10 Fabnet Peak Effective % . | . . . . . . Robots Rewired . | . . . . . . Allies Hacked . | . . . . . . Hacks Repelled . | . . . . . . Allies | -11 -10 -10 -9 -8 -8 -------- Run | Yrd Mat Min Mat Mat Gar Total Allies 3 | . . 3 . . . Largest Group 3 | . . 3 3 . . Highest-Rated Group 40 | . . 40 40 . . Highest-Rated Ally 16 | . . 16 16 . . Total Orders . | . . . . . . Ally Attacks 39 | . . . 39 . . Total Damage 304 | . . . 304 . . Kills 5 | . . . 5 . . Allies Corrupted . | . . . . . . Allies Melted . | . . . . . . Intel | -11 -10 -10 -9 -8 -8 ------- Run | Yrd Mat Min Mat Mat Gar Active Infowar (turns) 1894 | . . 520 803 571 . Sensors 1368 | . . . 797 571 . Seismic 697 | . . 520 177 . . Robot Analysis Total 1 | . . . . 1 . Derelict Logs Recovered 2 | . . 2 . . . Drone Launches . | . . . . . . Drone Recoveries . | . . . . . . Exploration | -11 -10 -10 -9 -8 -8 ------------- Run | Yrd Mat Min Mat Mat Gar Turns Passed 5641 | 68 148 752 1078 2616 979 Spaces Moved 3287 | 75 134 764 542 1212 560 Core 11 | 3 . . 2 4 2 Treads 367 | . . . 21 282 64 Legs 1702 | . . . 296 926 480 Wheels 1179 | 72 134 764 209 . . Hover . | . . . . . . Flight 28 | . . . 14 . 14 Fastest Speed 50 | 50 80 80 80 105 112 Average Speed 127 | 78 80 80 130 164 127 Slowest Speed 750 | 80 80 80 260 350 750 Overloaded Moves . | . . . . . . Propulsion Burnouts . | . . . . . . Robots Hopped . | . . . . . . Potential Cave-ins . | . . . . . . Cave-ins Triggered . | . . . . . . Exploration Rate (%) 51 | 3 27 98 57 71 54 Regions Visited 5 Branch Regions 1 Pre-discovered Areas 1 | . . 1 . . . Known Exits Taken 1 | . . . . 1 . Unknown Exits Taken 4 | 1 1 1 1 . . Scrap Searched 2 | . . 2 . . . Spaces Dug . | . . . . . . Terrain Destroyed 27 | . . . . 26 1 Melee . | . . . . . . Projectile 27 | . . . . 26 1 AOE . | . . . . . . Terrain Rammed . | . . . . . . Walls Destroyed . | . . . . . . Machines Disabled . | . . . . . . Actions | -11 -10 -10 -9 -8 -8 --------- Run | Yrd Mat Min Mat Mat Gar Total 4125 | 80 154 897 754 1548 692 Wait 356 | . . 124 85 114 33 Move 3283 | 74 133 763 541 1212 560 Hop . | . . . . . . Pick Up 25 | . 6 1 4 10 4 Fast Attach 55 | 6 1 . 15 17 16 Attach 11 | . . . 3 1 7 Detach . | . . . . . . Swap 58 | . 3 1 14 28 12 Drop 32 | . 1 2 9 19 1 Fire 291 | . 1 4 83 144 59 Melee 12 | . 9 . . 3 . Ram 2 | . . 2 . . . Kick . | . . . . . . Crush . | . . . . . . Escape Stasis . | . . . . . . Rewire . | . . . . . . Trap . | . . . . . . Miscellaneous . | . . . . . . Route ------- -11/Scrapyard -10/Materials -10/Mines (discovered 2 exits: *Mat x2) -9/Materials (discovered 2 exits: *Mat x2) -8/Materials (discovered 3 exits: [*Fac x2] / Gar) -8/Garrison (discovered 2 exits: [*Mat x2]) History --------- Turn | Location | Event 15 | -11/Scrapyard | Discovered new exit (range 15) 69 | -11/Scrapyard | Entered Materials 198 | -10/Materials | Discovered new exit (range 14) 217 | -10/Materials | Entered Mines 232 | -10/Mines | Met a Derelict bent on vengeance 310 | -10/Mines | Received a Rocket Launcher from a helpful Derelict 313 | -10/Mines | Build established: Mutant 397 | -10/Mines | Discovered new exit (range 12) 410 | -10/Mines | Learned location of Zion (-6) 430 | -10/Mines | Discovered new exit (range 9) 533 | -10/Mines | Learned 2 Materials zone layouts 746 | -10/Mines | Assisted by bots powering up and referring to "LRC-V3" 969 | -10/Mines | Entered Materials 969 | -9/Materials | Accompanied by 3 allies 969 | -9/Materials | Evolved 2 slots: Utility x2 1567 | -9/Materials | Discovered new exit (range 13) 1732 | -9/Materials | Lost 5 parts (2n2u1w) 1856 | -9/Materials | Core integrity fell below 50% 1952 | -9/Materials | Discovered new exit (range 12) 2047 | -9/Materials | Entered another Materials area 2047 | -8/Materials | Evolved 2 slots: Utility x2 2418 | -8/Materials | Build established: Scavenger-Mutant 2717 | -8/Materials | Lost 4 parts (1p1n2u) 3117 | -8/Materials | Build established: Mutant 3731 | -8/Materials | Discovered new exit (range 4) 3778 | -8/Materials | Lost 4 parts (2u2w) 3877 | -8/Materials | Build established: Scavenger-Mutant 4055 | -8/Materials | Garrison activated, responded to threat 4412 | -8/Materials | Discovered new exit (range 6) 4532 | -8/Materials | Core integrity fell below 50% 4536 | -8/Materials | Core integrity fell below 20% 4663 | -8/Materials | Identified exit to Garrison 4663 | -8/Materials | Entered Garrison 4797 | -8/Garrison | Triggered checkpoint 4907 | -8/Garrison | Lost 3 parts (1n2u) 4990 | -8/Garrison | Discovered new exit (range 8) 5037 | -8/Garrison | Triggered checkpoint 5063 | -8/Garrison | Garrison Relay disabled 5115 | -8/Garrison | Triggered checkpoint 5160 | -8/Garrison | Lost 3 parts (2u1w) 5201 | -8/Garrison | Triggered checkpoint 5218 | -8/Garrison | Garrison Relay disabled 5279 | -8/Garrison | Discovered new exit (range 9) 5415 | -8/Garrison | Triggered checkpoint 5642 | -8/Garrison | Destroyed by Y-45 Defender with Heavy Assault Rifle Last Messages --------------- 05556_ Relay Coupler [Swarmer] fries itself. 05560_ Slug penetrates Y-45 Defender. 05560_ Y-45 Defender destroyed. 05563_ Slug penetrates Y-45 Defender. 05563_ Y-45 Defender Beam Rifle blasted off. 05563_ Y-45 Defender destroyed. 05566_ Acquired 85 matter. 05568_ Acquired 5 matter. 05575_ Connecting with Door Terminal... >>Open(Door) Sealed Heavy Doors opened. 05575_ ALERT: Suspicious activity at Terminal G002. Transmitting hostile system tracking data. 05586_ Door Terminal unresponsive. 05607_ Acquired Lgt. Armor Plating. 05632_ Slug penetrates Wall. 05636_ Critical hit (Burn: +37). 05638_ G-47 Trooper destroyed. 05641_ Slug penetrates Wall. Map ----- +----------------------------------------------------+ | #### !*## ##??????# #?????????????????????????? | | =[ ! ######## #?????????????????????????? | | [! #?????????????????????????? | | #?????????????????????????? | | ## ## ###########?????????????????????????? | | ## ## ###?????????????????????????????????? | | #?????????????????????????????????? | | ![ #?????????????????????????????????? | | [ *#???????????????????######????????? | | = #???????????######### #????????? | | ^^## =*## ###???????????#"#[ !%! #????????? | | ## = [## #?????????????#" [##### T#????????? | | /== [ #?????????????# [=#???## ##????????? | | = /% = [ #?????????????#"=[#????# #????????? | | ] ] #?????????????#"# #????# #????????? | | / ## ## ##?????????????### #????#####????????? | | ## ## #?????????????## # ###???????????????? | | ######## #????????????## # * #???????????????? | | = #??????# #????????????# # =#???????????????? | | #??????# #??????????#### #???????????????? | | #??????# #??????????# ###???????????????? | | #??????# #??????????# ### # ##??????????????? | | % #??????# #####;######### # ##??????????????? | | #??????# = %%% %Y ## # #??????????????? | | #??????# ##### # ##??????????????? | | ###??????############## @ ###???????????????? | | ??????????????????????# #######?????????????????? | | ??????????????????????# #???????????????????????? | | ??????????????????????# *#???????????????????????? | | ??????????????????????#=%#???????????????????????? | | ??????????????????????# =###?????????????????????? | | ??????????????????????# #?????????????????????? | | ??????????????????????# < #?????????????????????? | | ??????????????????????# #?????????????????????? | | ??????????????????????######?????????????????????? | | ?????????????????????????????????????????????????? | | ?????????????????????????????????????????????????? | | ?????????????????????????????????????????????????? | | ?????????????????????????????????????????????????? | | ?????????????????????????????????????????????????? | | ?????????????????????????????????????????????????? | | ?????????????????????????????????????????????????? | | ?????????????????????????????????????????????????? | | ?????????????????????????????????????????????????? | | ?????????????????????????????????????????????????? | | ?????????????????????????????????????????????????? | | ?????????????????????????????????????????????????? | | ?????????????????????????????????????????????????? | | ?????????????????????????????????????????????????? | | ?????????????????????????????????????????????????? | +----------------------------------------------------+ Best States ------------- Heat Dissipation 58 Energy Generation 20 Energy Capacity 530 Matter Stores 300 Matter Capacity 300 Sight Range 16 Robot Scan Range 15 Terrain Scan Density 10 Power Amplification 20 Armor Coverage 600 Resistance: TH 10 Resistance: EM 15 Weapon Shielding 66 Evasion (%) 63 Targeting Accuracy 8 Core Analysis 9 Recoil Reduction 2 Salvage Targeting 2 Offensive Hacking 10 Item Schematics ----------------- None Robot Schematics ------------------ None Fabricated ------------ Nothing Repaired ---------- Nothing Alien Tech Used ----------------- None Achievements -------------- None Challenges ------------ None Game ------ Seed FocalGhostObliterator Manual? 0 Play Time 00:51:12 Cumulative 17.2 hours Start 2025.07.14 @ 04:05:27 End 2025.07.14 @ 04:54:16 Sessions 1 Manual Loads 0 Difficulty Rogue Special Mode None Game No. 33 Rogue 33 Adventurer 0 Explorer 0 Win Type - Total 0 Types 0/0/0/0/0/0/0/0/0/0 Lore% 10 Gallery% 19 Achievement% 19 Wizard Run 0 Options --------- Layout 2 ASCII 0 Keyboard 0 Movement Mouse Keybinds 1 Fullscreen 2 Font 32/Smallcaps Map View 50x44 Zoom Use 0% Tactical HUD 1 Map Filters NONE Filters NONE Steam 1 RUN: 56a67a9b-3b0b-43b1-8b0e-4fe80de3d7ca